bitfinex-derivatives/quotes_ETHF0:USTF0_20251021
["timestamp","ask_amount","ask_price","bid_price","bid_amount"]
[1761066003957,3.2078,4028.5,4027.6,2.3714]
[1761066004159,3.2078,4028.0,4027.6,2.3714]
[1761066004460,3.2078,4028.2,4027.6,2.37359206]
[1761066004658,3.2078,4027.7,4027.6,2.37359206]
[1761066004953,3.2078,4027.7,4027.6,0.00219206]
[1761066005558,9.06043491,4027.7,4026.3,2.3714]
[1761066005863,9.06043491,4027.7,4024.2,1.11785]
[1761066005864,0.97583491,4026.7,4025.8,3.2078]
[1761066006048,3.2078,4026.9,4025.8,2.3714]
[1761066006364,1.29948491,4026.8,4026.2,2.3714]
[1761066006657,1.27895237,4027.1,4026.2,2.37421003]
[1761066006658,3.2078,4026.4,4026.2,2.37421003]
[1761066007163,0.85263491,4026.3,4024.7,3.2078]
[1761066007359,0.44708,4024.8,4024.3,2.3714]
[1761066007549,3.2078,4024.7,4024.3,2.3714]
[1761066007750,3.2078,4025.3,4025.1,2.81844]
[1761066007954,4.06043491,4026.3,4025.5,2.81839]
[1761066008155,3.2078,4026.3,4025.7,2.3714]
[1761066008355,0.00306332,4026.3,4025.7,2.3714]
[1761066008560,3.2078,4026.8,4026.4,0.9354]
[1761066008561,3.491e-05,4026.5,4026.4,0.9354]
[1761066008755,2.13559605,4028.1,4026.9,2.3714]
[1761066008756,1.27895237,4027.1,4026.9,2.3714]
[1761066008963,3.331,4028.8,4028.0,0.44671]
[1761066008964,1.70958159,4028.6,4028.0,0.44671]
[1761066009166,1.70958159,4028.7,4028.1,2.3714]
[1761066009454,1.11623,4030.1,4028.1,2.3714]
[1761066009455,2.13559605,4029.8,4028.8,2.3714]
[1761066009660,2.13559605,4029.8,4029.7,2.81793]
[1761066009661,0.00316126,4029.8,4029.7,2.81793]
[1761066009853,2.13559605,4030.3,4030.2,2.81787]
[1761066010055,2.13559605,4030.5,4030.2,0.80756621]
[1761066010255,6.28231579,4031.1,4030.2,0.80756621]
[1761066010462,3.2078,4031.1,4031.0,0.44639]
[1761066010650,3.07451579,4031.8,4030.4,3.2078]
[1761066010954,0.00185586,4031.8,4030.6,0.44643]
[1761066011151,0.00185586,4031.8,4031.6,0.44631]
[1761066011350,0.022,4032.8,4031.7,10.923]
[1761066011549,3.07451579,4033.0,4031.7,10.923]
[1761066011550,3.07451579,4033.0,4032.7,0.4462]
[1761066011768,3.07451579,4034.0,4032.8,5.0]
[1761066012057,3.2078,4034.3,4033.2,2.3714]
[1761066012253,3.07451579,4034.4,4033.9,0.44606]
[1761066012558,3.2078,4035.5,4034.6,2.3714]
[1761066012759,3.2078,4035.5,4034.5,0.44599]
[1761066012760,3.2078,4034.8,4034.5,10.912]
[1761066012961,3.2078,4034.8,4034.1,2.3714]
[1761066013467,3.21019266,4034.8,4034.1,2.3714]
[1761066014065,3.21019266,4034.8,4034.3,2.3714]
[1761066014066,0.00239266,4034.8,4034.3,2.3714]
[1761066014360,3.2078,4035.6,4035.3,2.3714]
[1761066014659,3.2078,4035.1,4032.6,0.65958317]
[1761066014866,3.2078,4033.9,4032.3,3.2078]
[1761066015162,3.2078,4033.4,4032.8,4.535]
[1761066015363,0.44789198,4033.9,4032.8,4.535]
[1761066015364,0.00181198,4033.9,4032.9,3.2078]
[1761066015557,0.00181198,4033.9,4033.6,3.2078]
[1761066015751,1.198e-05,4033.9,4033.6,3.65389]
[1761066015952,3.2078,4035.7,4033.7,8.27528507]
[1761066016154,3.2078,4035.7,4034.8,0.44596]
[1761066016351,3.2078,4035.7,4035.0,0.44594]
[1761066016560,3.2078,4036.2,4035.4,0.4459]
[1761066016762,3.2078,4036.7,4035.8,2.2167]
[1761066017066,3.21041523,4036.7,4036.4,2.2167]
[1761066017359,2.3929,4036.6,4036.5,10.948]
[1761066017562,3.65617523,4036.7,4036.6,2.2167]
[1761066017563,3.21041523,4036.7,4036.6,2.2167]
[1761066017764,0.00261523,4036.7,4036.6,2.2167]
[1761066017965,3.2078,4037.7,4036.6,7.2167]
[1761066018270,3.2078,4038.4,4037.5,0.44566]
[1761066018566,3.2078,4038.4,4037.6,10.957]
[1761066018862,3.2078,4038.4,4037.7,2.6007]
[1761066019159,3.67784815,4037.8,4037.6,10.949]
[1761066019369,3.23220815,4037.8,4037.6,10.949]
[1761066019666,3.2078,4039.3,4037.8,2.6007]
[1761066019853,2.6298,4041.8,4039.7,2.6007]
[1761066020052,2.6298,4040.9,4040.4,3.2078]
[1761066020264,2.6298,4040.9,4040.0,3.2078]
[1761066020463,2.6298,4040.7,4039.4,3.2078]
[1761066020662,2.63265457,4040.7,4040.5,3.2078]
[1761066020965,0.022,4042.8,4041.0,0.1842]
[1761066020966,2.6484,4042.3,4041.0,0.1842]
[1761066021156,0.46709,4042.8,4040.6,18.87669942]
[1761066021157,2.6484,4042.1,4041.1,11.065]
[1761066021665,3.2078,4042.7,4041.2,3.2078]
[1761066021967,3.2078,4042.7,4041.7,3.2078]
[1761066021968,0.45800332,4042.5,4041.7,3.2078]
[1761066022158,2.6484,4041.9,4040.5,3.2078]
[1761066022360,3.6981,4041.0,4040.3,3.2078]
[1761066022567,3.6981,4041.0,4039.8,3.2078]
[1761066022764,3.2078,4041.6,4040.3,3.2078]
[1761066022969,3.2078,4041.6,4039.8,0.44541]
[1761066022970,0.44532,4040.7,4039.8,3.2078]
[1761066023160,2.6484,4041.3,4040.4,3.2078]
[1761066023363,3.09366,4041.2,4040.4,3.2078]
[1761066023562,2.6484,4041.2,4040.4,3.2078]
[1761066023865,2.6484,4041.9,4040.5,3.2078]
[1761066024066,0.44521,4041.7,4041.0,3.2078]
[1761066024274,3.09366,4041.2,4040.9,11.051]
[1761066024466,3.09366,4041.2,4040.5,3.2078]
[1761066024660,2.6484,4041.2,4040.5,14.2518]
[1761066024965,2.6484,4041.8,4041.1,3.2078]
[1761066025265,2.6484,4041.5,4039.9,3.2078]
[1761066025477,0.44531,4040.7,4039.9,3.2078]
[1761066025662,2.6484,4040.8,4039.9,3.2078]
[1761066025969,3.65311,4040.9,4039.9,3.2078]
[1761066025970,2.6484,4040.7,4039.9,3.2078]
[1761066026160,2.6484,4040.2,4039.3,3.2078]
[1761066026360,4.14355,4039.5,4038.8,3.2078]
[1761066026563,4.1466168,4039.5,4038.2,3.2078]
[1761066026873,0.0030668,4039.5,4039.4,3.21055784]
[1761066027065,8.0969168,4039.5,4039.4,0.00275784]
[1761066027263,2.6514668,4039.5,4039.4,0.00275784]
[1761066027475,3.0969168,4039.5,4039.4,0.00275784]
[1761066027670,9.1466168,4039.5,4039.4,0.00275784]
[1761066027966,0.0030668,4039.5,4039.4,0.00275784]
[1761066028270,2.6514668,4039.5,4039.4,0.00275784]
[1761066028578,2.6514668,4039.5,4038.6,3.2078]
[1761066028579,2.6484,4039.4,4038.6,3.2078]
[1761066028769,5.8562,4039.4,4038.6,3.2078]
[1761066028964,2.6484,4039.4,4038.6,3.2078]
[1761066029177,2.6484,4038.8,4038.6,3.2078]
[1761066029359,2.6484,4039.3,4038.6,3.2078]
[1761066029567,1.0527668,4039.5,4039.1,3.2078]
[1761066029869,0.03682101,4039.3,4038.6,0.00219212]
[1761066030070,0.03682101,4039.3,4039.1,3.2078]
[1761066030375,0.03682101,4039.3,4039.1,0.44548]
[1761066030570,0.03682101,4039.3,4039.2,0.6842]
[1761066030869,0.44553,4038.8,4038.6,0.00219212]
[1761066031066,2.6484,4038.8,4038.6,0.00219212]
[1761066031267,3.09393,4038.8,4038.6,0.00219212]
[1761066031470,2.6484,4038.8,4038.6,0.00219212]
[1761066031663,0.03682101,4039.3,4038.6,0.00219212]
[1761066031864,0.03682101,4039.0,4038.6,0.00219212]
[1761066032066,0.44552,4038.9,4038.6,0.00219212]
[1761066032270,0.44552,4038.9,4036.8,1.11435]
[1761066032271,3.2078,4038.7,4037.3,3.2078]
[1761066032475,0.44558,4038.4,4037.1,0.6864]
[1761066032673,0.44554,4038.7,4038.1,3.2078]
[1761066032863,0.03682101,4038.4,4038.0,0.6864]
[1761066033178,0.0030668,4039.5,4038.7,0.6496]
[1761066033369,2.6484,4039.4,4038.4,3.2078]
[1761066033573,3.09386,4039.4,4038.4,3.2078]
[1761066033772,2.6484,4039.4,4038.4,3.2078]
[1761066034084,0.0030668,4039.5,4039.0,3.6533]
[1761066034372,0.0030668,4039.5,4039.0,14.1968]
[1761066034674,0.0030668,4039.5,4039.4,0.6496]
[1761066035469,2.6484,4040.9,4039.5,0.6465]
[1761066035668,0.44536,4040.4,4039.6,3.2078]
[1761066035864,2.6484,4040.4,4039.6,4.138]
[1761066036372,2.6484,4040.4,4039.5,3.2078]
[1761066036572,0.44536,4040.3,4039.5,3.2078]
[1761066036781,1.11614745,4040.4,4039.5,3.2078]
[1761066036971,1.11614745,4040.4,4038.0,0.00274898]
[1761066036972,2.6484,4039.3,4039.0,3.2078]
[1761066037177,2.6484,4039.1,4039.0,3.2078]
[1761066037374,3.09396,4038.5,4038.0,0.00274898]
[1761066037570,3.09399,4038.3,4038.0,0.00274898]
[1761066037967,0.44552,4038.9,4038.0,0.00274898]
[1761066038167,3.09391,4039.0,4038.4,3.2078]
[1761066038374,0.44548,4039.3,4038.4,3.2078]
[1761066038568,3.2078,4039.7,4038.5,10.949]
[1761066038879,0.44546,4039.5,4038.9,3.2078]
[1761066039173,3.2078,4039.7,4038.5,10.949]
[1761066039476,3.2078,4040.2,4038.8,3.2078]
[1761066039681,0.44547,4039.4,4038.8,3.2078]
[1761066039879,1.1132,4041.1,4038.8,3.2078]
[1761066039880,3.2078,4040.2,4038.9,10.32100343]
[1761066040083,0.44545,4039.6,4038.9,7.146]
[1761066040286,0.44544,4039.6,4038.9,7.146]
[1761066040488,0.44547,4039.3,4038.7,14.1628]
[1761066040777,0.44546,4039.4,4038.7,3.2078]
[1761066040980,3.2078,4039.7,4038.7,3.2078]
[1761066041284,3.65324,4039.7,4039.0,0.4455]
[1761066041485,3.2078,4039.7,4038.8,3.24303058]
[1761066041671,0.44543,4039.7,4038.9,10.934]
[1761066041875,0.44543,4039.7,4038.7,3.2078]
[1761066041876,2.6484,4039.5,4038.7,14.1418]
[1761066042072,0.44552,4038.9,4038.7,3.2078]
[1761066042275,2.6484,4038.8,4038.7,3.2078]
[1761066043083,2.6484,4038.8,4038.0,0.00274898]
[1761066043084,2.6484,4038.1,4038.0,0.00274898]
[1761066043478,0.44555,4038.6,4038.0,0.00274898]
[1761066043680,1.0497,4039.1,4038.5,3.2078]
[1761066043877,2.6484,4039.4,4038.5,3.2078]
[1761066044084,2.6484,4038.3,4038.0,0.00274898]
[1761066044274,3.2078,4038.9,4038.0,0.00274898]
[1761066044480,0.44555,4038.7,4038.0,3.21054898]
[1761066044983,0.44555,4038.6,4038.0,3.21054898]
[1761066045278,3.09393,4038.8,4038.5,3.2078]
[1761066045485,6.30166,4039.5,4038.5,3.2078]
[1761066045779,3.09387,4039.4,4038.6,0.44554]
[1761066045984,0.44548,4039.3,4038.6,0.44554]
[1761066046273,0.4455,4039.1,4038.7,0.44553]
[1761066046477,2.6484,4039.4,4038.5,3.2078]
[1761066046676,0.44549,4039.2,4038.5,3.2078]
[1761066046883,2.6484,4039.4,4038.5,3.2078]
[1761066047086,2.6484,4039.4,4038.6,0.44555]
[1761066047288,0.84362514,4039.7,4039.3,3.2078]
[1761066047580,0.84362514,4039.7,4038.8,1.6465]
[1761066047581,0.44548,4039.2,4038.6,3.2078]
[1761066047776,2.6484,4039.5,4038.6,3.2078]
[1761066047777,3.09394,4038.8,4038.6,3.2078]
[1761066047980,2.6484,4038.8,4038.6,3.2078]
[1761066048181,3.09393,4038.8,4038.6,3.2078]
[1761066048380,2.6484,4038.7,4038.6,3.2078]
[1761066048875,3.09399,4038.2,4038.0,0.00274898]
[1761066049078,2.6484,4038.1,4038.0,0.00274898]
[1761066049890,3.51177411,4038.1,4038.0,0.00274898]
[1761066050191,0.86337411,4038.1,4038.0,0.00274898]
[1761066050481,0.44581,4036.3,4035.9,0.8794914]
[1761066050682,5.7934,4036.7,4035.6,3.2078]
[1761066050984,3.2078,4037.2,4036.1,1.6173]
[1761066051173,3.2078,4037.2,4036.0,3.15915347]
[1761066051174,3.2078,4037.2,4037.1,1.6173]
[1761066051379,0.86337411,4037.7,4037.1,12.5153]
[1761066051687,2.5856,4037.4,4037.1,0.0031681]
[1761066051991,4.07117411,4037.5,4037.1,7.0661681]
[1761066052288,2.5856,4036.6,4035.3,10.889]
[1761066052587,3.2078,4036.3,4036.1,2.06312]
[1761066052785,3.2078,4036.8,4036.1,1.6173]
[1761066052980,3.2078,4036.8,4036.3,0.44579]
[1761066053286,3.2078,4037.4,4036.9,0.44574]
[1761066053483,3.2078,4037.4,4037.1,1.6173]
[1761066053985,3.2078,4037.4,4037.2,0.4457]
[1761066054192,2.5856,4037.3,4036.8,0.44574]
[1761066054378,4.667e-05,4037.7,4037.6,2.06296]
[1761066054576,4.667e-05,4037.7,4037.6,12.5183]
[1761066054776,4.667e-05,4037.7,4037.6,17.5183]
[1761066055280,3.2078,4039.1,4039.0,0.44551]
[1761066055579,2.00292683,4039.4,4039.0,10.887]
[1761066055778,3.2078,4039.6,4039.4,0.44546]
[1761066055978,3.2078,4039.6,4039.0,3.2078]
[1761066056183,3.2078,4039.6,4037.9,0.8794914]
[1761066056184,3.2078,4039.1,4038.8,0.44553]
[1761066056380,2.5856,4039.0,4038.8,0.00265473]
[1761066056580,2.5856,4038.9,4038.8,7.70465473]
[1761066056779,3.20956536,4039.1,4038.8,7.70465473]
[1761066057384,0.00176536,4039.1,4038.9,1.6156]
[1761066057588,0.00176536,4039.1,4039.0,2.06111]
[1761066057888,0.00176536,4039.1,4039.0,10.872]
[1761066058085,0.00176536,4039.1,4038.8,0.00265473]
[1761066058086,7.79809219,4039.1,4038.8,0.00265473]
[1761066058386,2.5856,4038.9,4038.8,0.00265473]
[1761066058688,2.44843683,4039.0,4037.6,0.44565]
[1761066058689,2.5856,4038.1,4037.6,0.44565]
[1761066058889,5.7934,4038.1,4037.7,9.952]
[1761066059082,5.7934,4038.1,4037.5,3.2078]
[1761066059083,2.5856,4037.9,4037.5,3.2078]
[1761066059280,2.5856,4037.9,4036.6,3.2078]
[1761066059281,5.7934,4037.6,4036.6,3.2078]
[1761066059491,5.7934,4037.1,4036.3,0.4458]
[1761066059989,5.7934,4037.1,4036.4,11.31379]
[1761066060192,6.23913,4037.1,4036.3,0.4458]
[1761066060386,2.21826,4038.0,4036.4,10.858]
[1761066060387,2.5856,4036.9,4036.4,10.858]
[1761066060687,2.5856,4036.9,4036.0,3.24870377]
[1761066060883,2.5856,4037.5,4036.8,0.44574]
[1761066061083,2.5856,4037.5,4036.4,4.8234]
[1761066061278,4.58852683,4037.4,4036.6,1.6156]
[1761066061482,2.5856,4037.2,4036.4,3.2078]
[1761066061686,2.5856,4035.3,4034.7,1.3197125]
[1761066061888,1.11441,4036.7,4034.5,10.881]
[1761066061889,2.5856,4034.8,4034.5,10.881]
[1761066062082,2.5856,4034.8,4034.0,0.44605]
[1761066062083,2.5856,4034.8,4034.0,4.52486579]
[1761066062288,3.2078,4034.9,4033.6,3.2078]
[1761066062289,3.2078,4034.9,4034.1,1.6156]
[1761066062488,3.2078,4034.4,4033.6,3.2078]
[1761066062691,3.2078,4034.4,4032.9,1.3197125]
[1761066062692,2.5856,4034.3,4033.9,0.44606]
[1761066062886,2.5856,4034.3,4033.7,9.331]
[1761066063089,3.2078,4033.9,4033.3,1.6156]
[1761066063297,2.5856,4033.8,4033.4,10.882]
[1761066063598,1.11478,4035.4,4033.4,10.882]
[1761066063599,3.2078,4034.6,4034.5,0.446]
[1761066063794,3.2078,4034.6,4034.5,12.9386]
[1761066063994,3.21096362,4034.6,4034.5,7.06455346]
[1761066064199,3.2078,4035.1,4035.0,2.05835]
[1761066064490,2.5856,4035.0,4034.5,0.00295346]
[1761066064686,5.7934,4034.6,4034.5,0.00295346]
[1761066064886,0.44617,4033.0,4032.2,1.3197125]
[1761066065087,5.7934,4032.9,4032.5,10.868]
[1761066065283,5.7934,4032.9,4032.6,0.44621]
[1761066065487,1.1042,4034.4,4032.8,5.02479667]
[1761066065488,2.5856,4033.5,4032.8,5.02479667]
[1761066065691,3.2078,4033.0,4032.8,0.02479667]
[1761066065893,5.79648492,4033.0,4032.8,0.0274827]
[1761066066111,3.03178,4032.9,4032.8,0.0274827]
[1761066066300,2.5856,4032.2,4030.6,1.6124]
[1761066066595,1.1042,4032.6,4030.6,1.6124]
[1761066066596,3.2078,4031.3,4031.1,0.44637]
[1761066066795,2.5856,4031.2,4030.6,3.1691362]
[1761066066984,3.2078,4031.3,4031.0,10.868]
[1761066067192,5.7934,4031.3,4031.0,10.868]
[1761066067391,5.7934,4031.3,4030.1,3.2078]
[1761066067392,2.5856,4031.0,4030.1,3.1691362]
[1761066067690,2.5856,4030.4,4030.2,10.866]
[1761066068085,3.2078,4031.0,4030.1,0.00186446]
[1761066068286,2.5856,4030.4,4030.1,0.00186446]
[1761066068496,2.5856,4030.2,4030.1,0.00186446]
[1761066069088,0.4465,4030.0,4028.9,0.44662]
[1761066069287,2.5856,4029.2,4028.3,0.44668]
[1761066069489,2.5856,4028.5,4028.2,6.886]
[1761066069695,3.2078,4028.6,4028.4,0.44667]
[1761066069999,1.1042,4029.2,4027.9,4.8202]
[1761066070191,2.58770794,4028.6,4028.4,0.00299533]
[1761066070906,0.00210794,4028.6,4028.5,10.86]
[1761066071288,0.00210794,4028.6,4028.5,10.854]
[1761066071492,3.2078,4029.4,4029.2,0.44659]
[1761066071794,3.2078,4030.5,4030.4,0.44646]
[1761066071996,3.2078,4031.8,4030.4,12.4744]
[1761066072207,3.2078,4031.8,4031.6,0.44631]
[1761066072494,2.5856,4032.2,4032.1,0.44627]
[1761066072694,3.2078,4032.9,4032.8,0.44619]
[1761066072889,3.2078,4033.4,4033.2,0.44614]
[1761066073286,0.00308258,4033.4,4033.3,10.854]
[1761066073490,3.2078,4034.1,4034.0,0.44606]
[1761066073692,2.5856,4034.0,4033.4,0.44611]
[1761066073909,2.5856,4033.5,4033.3,0.44612]
[1761066074199,2.5856,4033.5,4033.4,10.132]
[1761066074389,2.58853342,4033.5,4033.4,10.132]
[1761066074591,0.00293342,4033.5,4033.3,0.44613]
[1761066074793,0.00293342,4033.5,4033.4,7.673]
[1761066074997,3.2078,4034.6,4034.4,0.446]
[1761066075190,3.2078,4034.6,4034.5,10.842]
[1761066075492,3.2078,4035.1,4034.9,0.44595]
[1761066075696,3.2078,4035.1,4034.6,0.44598]
[1761066075890,3.20993965,4035.1,4034.7,10.834]
[1761066076092,0.00213965,4035.1,4035.0,0.44595]
[1761066076397,0.00213965,4035.1,4035.0,8.4270875]
[1761066076586,2.58773965,4035.1,4035.0,3.1609375]
[1761066076793,8.20993965,4035.1,4034.6,0.00268559]
[1761066076990,0.00213965,4035.1,4034.7,4.958]
[1761066077300,2.5856,4035.0,4034.8,10.822]
[1761066077594,2.5856,4034.8,4034.6,0.00268559]
[1761066077793,2.5856,4034.7,4034.6,0.00268559]
[1761066078303,2.5856,4034.7,4032.8,1.6124]
[1761066078304,2.5856,4033.9,4032.4,3.73514]
[1761066078487,3.2078,4033.7,4033.1,0.44615]
[1761066078693,3.2078,4033.7,4033.4,0.44612]
[1761066078900,5.9448,4034.3,4033.7,0.44609]
[1761066079196,2.737,4034.2,4033.8,0.44607]
[1761066079594,2.737,4034.2,4033.2,0.00271051]
[1761066079791,0.44614,4033.3,4033.2,0.00271051]
[1761066079991,3.18315,4033.2,4032.0,3.87]
[1761066080198,2.737,4032.5,4031.0,3.2078]
[1761066080502,1.11563,4032.3,4030.1,3.2078]
[1761066080703,2.5167,4031.2,4030.7,0.44642]
[1761066080890,2.5167,4031.2,4030.1,3.2078]
[1761066081090,2.51941948,4031.2,4030.7,0.00183833]
[1761066081309,2.51941948,4031.2,4030.8,7.812]
[1761066081598,2.51941948,4031.2,4031.1,0.44638]
[1761066081804,2.51941948,4031.2,4030.9,0.44639]
[1761066082005,2.51941948,4031.2,4031.0,0.44638]
[1761066082209,2.51941948,4031.2,4030.7,0.00183833]
[1761066082210,2.51941948,4031.2,4031.1,8.076]
[1761066082507,2.51941948,4031.2,4029.6,20.083]
[1761066082508,2.5167,4030.8,4029.6,10.803]
[1761066082705,2.96322,4029.8,4029.6,10.803]
[1761066082997,3.2078,4029.9,4027.6,3.2078]
[1761066082998,1.11641,4029.5,4027.6,3.2078]
[1761066083299,2.5167,4028.2,4027.1,3.2078]
[1761066083495,2.5167,4027.5,4027.1,0.00310073]
[1761066083697,2.5167,4027.4,4027.1,0.00310073]
[1761066083903,2.5167,4027.3,4027.1,0.00310073]
[1761066084895,2.5167,4027.9,4027.7,0.44675]
[1761066085100,2.5167,4027.9,4027.5,0.44678]
[1761066085296,2.5167,4027.9,4027.8,0.44674]
[1761066085601,2.5167,4027.9,4027.7,0.44675]
[1761066085793,3.20964392,4028.2,4027.2,3.2078]
[1761066085794,2.5167,4028.1,4027.2,3.2078]
[1761066085996,1.0722,4027.5,4027.2,7.67]
[1761066086305,1.0722,4027.5,4027.1,0.00310073]
[1761066086306,2.5167,4027.4,4027.1,0.00310073]
[1761066086692,0.44681,4027.2,4027.1,0.00310073]
[1761066086901,2.5167,4027.2,4027.1,7.3e-07]
[1761066087099,7.5167,4027.2,4027.1,7.3e-07]
[1761066087301,2.5167,4026.6,4025.1,3.2078]
[1761066087497,2.5167,4026.1,4025.1,3.2078]
[1761066087698,2.5167,4026.1,4024.0,0.16156421]
[1761066087699,2.5167,4025.9,4024.6,6.459599]
[1761066087904,2.5167,4025.6,4024.7,10.786]
[1761066088205,2.5167,4025.6,4025.2,0.44703]
[1761066088401,2.5167,4025.6,4025.4,0.447]
[1761066088596,2.5167,4026.3,4025.8,0.44696]
[1761066088801,2.5167,4026.8,4026.6,0.44687]
[1761066089105,2.5167,4026.8,4026.7,0.44687]
[1761066089306,1.0722,4027.5,4027.3,0.4468]
[1761066089502,2.5167,4027.4,4027.1,0.44682]
[1761066089710,2.5167,4028.1,4028.0,0.44672]
[1761066090006,2.5167,4028.6,4028.4,0.44667]
[1761066090304,3.2078,4029.7,4029.6,0.44654]
[1761066090603,2.5167,4030.9,4029.3,10.771]
[1761066090805,2.5167,4030.4,4029.6,0.44654]
[1761066091107,2.5167,4029.5,4029.3,0.00308162]
[1761066091309,2.5167,4029.4,4029.3,0.00308162]
[1761066092098,2.5167,4029.4,4029.3,0.44966162]
[1761066092305,2.5167,4029.4,4029.3,0.00308162]
[1761066092504,2.5167,4029.3,4028.9,10.76]
[1761066092802,3.2078,4029.7,4029.1,0.4466]
[1761066093005,1.07409279,4030.5,4029.4,3.2078]
[1761066093305,2.5167,4030.1,4029.0,1.11652]
[1761066093506,2.5167,4030.1,4029.9,0.4465]
[1761066093704,2.5167,4029.9,4029.0,0.00299072]
[1761066094006,2.5167,4029.3,4029.1,8.42]
[1761066094203,2.5167,4029.3,4029.2,8.42]
[1761066094404,2.5167,4029.9,4029.6,0.44654]
[1761066094604,2.5167,4029.9,4029.0,3.21079072]
[1761066094912,2.5167,4029.1,4029.0,0.00299072]
[1761066095096,2.5167,4029.9,4029.0,3.21079072]
[1761066095295,3.2078,4030.2,4030.0,0.44649]
[1761066095505,2.5167,4030.4,4030.2,0.44647]
[1761066095705,2.5167,4030.4,4030.2,0.44648]
[1761066095897,1.07409279,4030.5,4030.4,2.48766]
[1761066095898,0.00189279,4030.5,4030.4,2.48766]
[1761066096095,2.5167,4031.8,4030.4,10.736]
[1761066096293,2.5167,4031.3,4030.3,3.2078]
[1761066096705,2.5167,4031.3,4030.4,6.723]
[1761066096897,3.2078,4031.4,4031.2,0.44637]
[1761066097101,2.5167,4031.3,4030.4,3.19830282]
[1761066097296,2.5167,4031.3,4029.7,1.11631]
[1761066097297,0.44637,4031.2,4030.3,0.44646]
[1761066097509,2.5167,4030.9,4030.5,0.44643]
[1761066097803,2.96513361,4031.4,4030.6,0.44643]
[1761066098003,2.51878361,4031.4,4030.7,0.44642]
[1761066098206,0.00208361,4031.4,4031.2,0.44636]
[1761066098410,3.2078,4032.1,4031.9,0.44629]
[1761066098610,3.2078,4032.1,4031.3,3.19910942]
[1761066098801,2.5167,4031.9,4031.4,10.51734]
[1761066099001,2.5167,4031.9,4031.5,11.17332]
[1761066099206,3.2078,4032.1,4031.5,10.727]
[1761066099411,2.5167,4032.0,4031.8,0.44629]
[1761066099610,3.20965147,4032.1,4031.5,10.72895021]
[1761066099810,1.0722,4033.5,4031.5,10.72895021]
[1761066099811,1.0722,4033.5,4032.2,2.0412]
[1761066100003,1.0722,4033.5,4032.0,0.44627]
[1761066100004,2.5167,4033.4,4032.0,0.44627]
[1761066100205,2.5167,4033.0,4031.7,3.15698]
[1761066100408,2.5167,4033.0,4031.7,2.0412]
[1761066100615,2.5167,4033.0,4032.5,0.44621]
[1761066100815,2.5188702,4033.0,4031.9,1.11573]
[1761066101003,0.0021702,4033.0,4032.6,0.4462]
[1761066101309,0.0021702,4033.0,4032.8,3.65399]
[1761066101504,2.5167,4034.4,4034.3,0.44602]
[1761066101703,2.5167,4034.4,4033.8,3.2078]
[1761066101900,2.5167,4034.4,4033.9,10.732]
[1761066102108,2.5167,4034.4,4034.3,0.44602]
[1761066102307,2.5167,4034.7,4033.8,3.2078]
[1761066102500,2.51865993,4034.7,4034.3,3.2078]
[1761066102705,0.00195993,4034.7,4034.5,0.446]
[1761066103010,0.00195993,4034.7,4034.5,0.44875968]
[1761066103312,2.52408,4035.5,4035.4,0.4459]
[1761066103619,2.52408,4035.5,4035.3,0.44591]
[1761066103620,0.00738,4035.5,4035.3,0.44591]
[1761066103812,0.00738,4035.5,4035.4,10.72]
[1761066104113,0.00738,4035.5,4035.4,17.7572]
[1761066104319,0.01048375,4035.5,4035.4,17.7572]
[1761066104511,2.5167,4037.4,4035.7,1.11466]
[1761066104817,2.5167,4037.4,4036.5,3.2078]
[1761066105008,2.96231,4038.1,4037.1,0.44571]
[1761066105312,1.0722,4039.0,4037.0,3.2078]
[1761066105313,2.5167,4037.7,4037.0,3.2078]
[1761066105518,0.0029978,4037.7,4036.9,3.2078]
[1761066105712,0.0029978,4037.7,4037.0,7.444]
[1761066105907,0.0029978,4037.7,4036.5,2.0308]
[1761066105908,2.9624,4037.3,4037.1,10.713]
[1761066106112,0.0029978,4037.7,4037.1,10.713]
[1761066106618,0.0029978,4037.7,4037.6,3.2078]
[1761066106818,0.0029978,4037.7,4037.6,3.21082265]
[1761066107004,2.5196978,4037.7,4037.6,13.91882265]
[1761066107207,2.5196978,4037.7,4037.6,0.00302265]
[1761066107717,7.5196978,4037.7,4037.6,0.00302265]
[1761066108115,0.0029978,4037.7,4037.6,0.00302265]
[1761066108316,2.5196978,4037.7,4037.6,0.00302265]
[1761066108620,0.0029978,4037.7,4037.6,10.68602265]
[1761066109410,0.0029978,4037.7,4037.6,20.91603107]
[1761066109720,0.022,4037.8,4037.7,2.47345]
[1761066109914,2.5167,4039.1,4038.5,0.44555]
[1761066110118,2.5167,4039.1,4038.6,10.669]
[1761066110418,2.5167,4040.5,4039.1,3.14154]
[1761066110627,3.2078,4040.7,4040.2,0.44537]
[1761066110815,3.21000488,4040.7,4040.3,10.67]
[1761066111014,0.01210663,4040.5,4040.3,10.67]
[1761066111217,0.01210663,4040.5,4040.4,2.2246]
[1761066111513,0.01210663,4040.5,4039.7,3.2078]
[1761066111514,2.7479,4040.4,4039.7,3.2078]
[1761066111815,3.19328,4040.2,4039.8,10.662]
[1761066112018,0.01210663,4040.0,4039.8,10.662]
[1761066112223,0.45749663,4040.0,4039.9,10.664]
[1761066112521,0.45749663,4040.0,4039.0,5.4324]
[1761066112522,0.44545,4039.5,4039.0,5.4324]
[1761066112822,0.4454,4039.9,4039.2,0.44548]
[1761066113018,0.01210663,4040.0,4039.1,3.28993149]
[1761066113019,2.7479,4040.0,4039.1,3.28993149]
[1761066113213,2.7479,4039.3,4038.6,2.2246]
[1761066113416,2.7479,4039.3,4038.7,10.642]
[1761066113621,3.19344,4038.7,4038.5,3.2078]
[1761066114123,0.01210663,4038.6,4038.5,3.2078]
[1761066114309,2.76000663,4038.6,4038.5,3.2078]